Cogmind - Beta 16 @@@ ROGUE MODE // 2025.11.09 @ 21:37:35 Player: Cherman0 Result: Destroyed by H-77 Assassin with High-powered Shotgun Performance ------------- Evolutions (6) 3000 Regions Visited (20) 4000 Robots Destroyed (478) 2390 Value Destroyed (21286) 21286 Prototype IDs (39) 780 Alien Tech Used (0) 0 Bonus (14948) 14948 TOTAL SCORE: 46404 Bonus ------- High Alert Combat Kills 5189 Follower Combat Kills 2874 Entered Garrisons 1800 Used RIF Installer 5500 Friendly Fire -415 Cogmind --------- Core Integrity 0/1150 Matter 300/300 Energy 317/325 System Corruption 23% Temperature Cool (0) Movement Core (400) Ox7 Location -4/Garrison Parts ------- > --- POWER (2) -------- Antimatter Reactor > --- PROPULSION (6) --- (None) > --- UTILITY (8) ------ Advanced Heat Sink Advanced Coolant Injector Experimental Core Analyzer Relay Coupler [NC] (52) Relay Coupler [Swarmer] (30) Relay Coupler [Specialist] (27) Relay Coupler [Proto] (23) > --- WEAPON (3) ------- Enhanced Force Rifle > --- INVENTORY (5) ---- Enhanced Nova Cannon Improved Remote Datajack Improved Plasma Cutter Multitool Peak State ------------ > --- POWER ------------ Light Quantum Reactor Light Quantum Reactor > --- PROPULSION ------- Biometal Heavy Treads Biometal Heavy Treads Biometal Heavy Treads > --- UTILITY ---------- Advanced Cooling System Huge Storage Unit Experimental Core Analyzer Improved Transmission Jammer Hardened Medium Armor Plating Improved Hacking Suite Relay Coupler [NC] Relay Coupler [Proto] > --- WEAPON ----------- Enhanced Quantum Rifle Helical Railgun Helical Railgun > --- INVENTORY -------- Light Quantum Reactor Improved Heavy Treads Experimental Heat Sink Advanced Cooling System Advanced Coolant Injector Advanced Coolant Injector Advanced Matter Compressor Seismic Detector Experimental Core Analyzer Advanced Weapon Cycler Force Rifle Enhanced Force Rifle Enhanced Force Rifle Enhanced Quantum Rifle Enhanced Quantum Rifle Enhanced Nova Cannon Improved Heavy Machine Gun Railgun Smartbomb Launcher Improved Remote Datajack Improved Plasma Cutter Multitool [Rating: 156] Favorites ----------- Power Ion Engine Engine Ion Engine Power Core Enhanced Nuclear Core Reactor Antimatter Reactor Propulsion Light Treads Treads Light Treads Leg Aluminum Leg Flight Unit Field Propulsion Array Utility High-capacity Storage Unit Device Seismic Detector Storage High-capacity Storage Unit Processor Core Analyzer Hackware Hacking Suite Protection Improved Medium Armor Plating Weapon Heavy Assault Rifle Energy Gun Medium Laser Energy Cannon Matter Neutralizer Ballistic Gun Heavy Assault Rifle Ballistic Cannon Light Cannon Launcher Subdweller Shrapnel Launcher Special Weapon Mining Laser Slashing Weapon Makeshift Sword Special Melee Weapon Datajack Build | -11 -10 -10 -8 -8 -8 -8 -7 -7 -7 -7 -6 -6 -5 -5 -5 -5 -4 -4 -4 -4 ------- Run | Yrd Mat Sub Mat Gar Mat Gar Fac Gar Fac Gar Fac Gar Fac Gar Fac Gar Fac Gar Fac Gar Slots Evolved 12 | . . . 4 . . . 2 . . . 2 . 2 . . . 2 . . . Power 1 | . . . . . . . . . . . 1 . . . . . . . . . Propulsion 4 | . . . 1 . . . 1 . . . 1 . 1 . . . . . . . Utility 6 | . . . 2 . . . 1 . . . . . 1 . . . 2 . . . Weapon 1 | . . . 1 . . . . . . . . . . . . . . . . . Parts Attached 254 | 3 12 15 33 12 11 6 6 15 6 18 14 19 15 12 7 13 5 8 18 6 Power 25 | . 1 1 2 1 1 . 1 1 1 . 1 2 4 1 . 2 . 2 3 1 Engine 7 | . 1 1 1 1 1 . . 1 . . . . . . . . . . 1 . Core 10 | . . . 1 . . . 1 . 1 . 1 1 4 . . . . . 1 . Reactor 8 | . . . . . . . . . . . . 1 . 1 . 2 . 2 1 1 Propulsion 55 | 2 2 3 14 2 6 1 2 2 . 8 1 3 . 1 . 2 1 2 1 2 Treads 53 | 2 2 3 14 2 6 1 2 2 . 8 1 3 . . . 2 1 2 . 2 Leg 1 | . . . . . . . . . . . . . . 1 . . . . . . Wheel . | . . . . . . . . . . . . . . . . . . . . . Hover . | . . . . . . . . . . . . . . . . . . . . . Flight 1 | . . . . . . . . . . . . . . . . . . . 1 . Utility 92 | 1 3 . 9 2 3 1 2 6 3 7 8 8 7 6 4 5 4 4 6 3 Device 35 | 1 2 . 2 . 2 . 1 2 1 1 5 3 3 . 4 2 . 1 4 1 Storage 5 | . 1 . . . . . . . . . 1 1 1 . . . 1 . . . Processor 6 | . . . . . . . . . . 2 . . 1 . . . 1 . 2 . Hackware 16 | . . . 3 . . . . 1 1 . 1 3 . 2 . 1 1 1 . 2 Protection 30 | . . . 4 2 1 1 1 3 1 4 1 1 2 4 . 2 1 2 . . Artifact . | . . . . . . . . . . . . . . . . . . . . . Weapon 82 | . 6 11 8 7 1 4 1 6 2 3 4 6 4 4 3 4 . . 8 . Energy Gun 13 | . 1 1 1 1 . . . 1 . 1 1 . 1 . . . . . 5 . Energy Cannon 5 | . . . . . . 1 . . . . 1 1 . . 1 1 . . . . Ballistic Gun 47 | . 1 5 6 4 1 2 1 3 2 2 2 4 2 4 2 3 . . 3 . Ballistic Cannon 3 | . 1 2 . . . . . . . . . . . . . . . . . . Launcher 6 | . 1 2 1 . . 1 . 1 . . . . . . . . . . . . Special Weapon 6 | . 1 . . 2 . . . 1 . . . 1 1 . . . . . . . Impact Weapon . | . . . . . . . . . . . . . . . . . . . . . Slashing Weapon 1 | . . 1 . . . . . . . . . . . . . . . . . . Piercing Weapon . | . . . . . . . . . . . . . . . . . . . . . Special Melee Weapon 1 | . 1 . . . . . . . . . . . . . . . . . . . Unidentified Prototypes 11 | . . . 1 . 1 . . . 2 1 . . 2 . 1 2 1 . . . Corrupted Parts 3 | . . . . . . . . . . . . 1 . . . . . . 2 . System Corruption 3 | . . . . . . . . . . . . 1 . . . . . . 2 . Parts Lost 69 | . 2 2 7 5 . 2 . 4 . 1 2 3 9 . 1 . 2 2 21 6 Power 8 | . . 1 1 . . . . . . . . 1 1 . . . . . 3 1 Propulsion 14 | . . . 1 1 . 1 . 2 . 1 . . . . 1 . . . 4 3 Utility 29 | . 2 . 3 2 . . . 2 . . 1 1 5 . . . 1 1 10 1 Weapon 18 | . . 1 2 2 . 1 . . . . 1 1 3 . . . 1 1 4 1 Highest Loss Streak 18 | . 1 1 1 3 . 1 . 2 . 1 2 2 2 . 1 . 2 2 18 6 To Critical Strikes . | . . . . . . . . . . . . . . . . . . . . . Average Backups 19 | 6 15 19 19 19 19 19 19 19 19 18 16 16 18 23 22 22 21 22 17 4 Power . | 1 1 . . . . 1 1 . . . . . . 1 1 1 1 1 . . Propulsion 3 | 4 6 6 3 2 3 2 2 2 2 2 2 2 1 1 . . . 1 . . Utility 5 | . . 1 4 5 5 6 8 7 7 6 6 3 6 11 11 10 7 8 6 . Weapon 7 | 1 6 9 8 7 8 7 6 5 7 6 5 7 7 6 6 7 8 9 7 1 Tool/Special . | . . . . . . . . . . . . . . . . . . . . . Unused Backups 57 | 4 11 1 8 2 4 . 1 3 . 2 1 3 6 3 1 5 . 1 1 . Power 6 | 1 1 . . . . . . . . . . . 1 . . 2 . 1 . . Propulsion 12 | . 6 . 1 . 3 . . . . 2 . . . . . . . . . . Utility 16 | 1 1 1 1 2 1 . 1 2 . . 1 2 . 1 . 1 . . 1 . Weapon 23 | 2 3 . 6 . . . . 1 . . . 1 5 2 1 2 . . . . Tool/Special . | . . . . . . . . . . . . . . . . . . . . . Average Slot Usage (%) 91 | . 94 99 96 99 99 99 99 98 100 91 82 84 81 81 81 81 83 83 71 57 Engine 5 | . 14 13 4 9 9 9 1 4 . . . . . . . . . . . 4 Core 2 | . . . 3 . . . 5 2 6 7 12 10 4 3 . . . . . . Reactor 2 | . . . . . . . . . . . . 1 5 6 11 11 10 10 7 . Treads 23 | . 28 28 26 27 27 27 30 29 30 22 17 19 17 17 16 16 15 15 11 1 Device 9 | . 8 14 8 2 4 9 14 12 5 5 4 7 8 15 5 9 12 9 11 10 Storage 8 | . 14 14 9 9 9 9 7 7 7 7 7 6 5 5 5 5 5 5 3 . Processor 1 | . . . . . . . . . . 6 6 6 3 . . . . . 1 5 Hackware 7 | . . . 7 9 9 9 7 7 15 8 6 7 10 6 17 12 17 21 15 19 Protection 5 | . . . 7 15 12 9 7 8 8 8 6 2 3 5 5 5 5 5 3 . Energy Gun 3 | . 13 5 4 . . . . . . 3 2 . 1 . . . . . 5 5 Ballistic Gun 14 | . 12 7 21 21 27 21 22 18 15 14 15 17 13 15 14 14 13 14 4 . Ballistic Cannon 1 | . . 7 . . . . . . . . . . . . . . . . . . Special Weapon 1 | . 1 5 . . . . . . 4 . . . . . 1 . 1 . . 3 Slashing Weapon 1 | . . 1 1 3 . 4 . 3 2 2 . . . . . . . . . . Peak Build Rating 156 | 7 9 14 32 38 35 38 42 48 47 71 83 88 110 116 115 136 145 144 156 82 Average Rating 56 | 6 7 10 26 33 31 34 40 41 46 56 76 79 96 112 110 121 140 141 122 72 On Entrance 63 | 6 7 9 13 28 34 34 32 39 47 47 71 78 75 110 113 108 128 142 144 64 Avg Prop Armor Cover (%) 6 | . . . . . . . . . . . 5 6 . . 8 . . . . . Naked Turns . | . . . . . . . . . . . . . . . . . . . . . Heaviest Build 163 | 12 49 56 66 77 72 70 71 83 75 74 83 87 142 145 137 163 163 154 142 31 Greatest Support 235 | 40 40 40 69 60 76 76 96 98 98 150 170 170 225 225 225 235 235 235 225 46 Greatest Overweight (x) 4 | . 1 1 1 1 1 . . 1 . . . . . . 1 . . . 1 4 Average Overweight (x) . | . . 1 . 1 . . . . . . . . . . . . . . . . Largest Inventory Capacity 25 | 8 20 20 20 20 20 20 20 20 20 20 20 20 25 25 25 25 25 25 25 5 Average Capacity 20 | 8 17 20 20 20 20 20 20 20 20 20 20 20 22 25 25 25 25 25 20 5 Most Carried 25 | 8 20 20 20 20 20 20 20 20 20 20 20 20 25 25 25 25 25 25 25 5 Average Carried 20 | 6 15 19 19 19 19 19 19 19 19 19 19 19 20 24 24 23 23 24 19 4 Final Capacity 25 | 8 20 20 20 20 20 20 20 20 20 20 20 20 25 25 25 25 25 25 5 5 Final Carried 25 | 8 20 18 19 20 20 20 20 20 20 20 20 20 25 25 23 25 25 25 5 4 Class Distribution -------------------- 37% | Scavenger-Tank 31% | Mutant 12% | Tank 7% | Scavenger-Mutant 4% | Bothacker-Tank 3% | Commander-Tank Dominant Class ---------------- Mutant | -10/Materials Mutant | -10/Subcaves Scavenger-Tank | -8/Materials Tank | -8/Garrison Scavenger-Tank | -8/Materials Scavenger-Tank | -8/Garrison Scavenger-Tank | -7/Factory Scavenger-Tank | -7/Garrison Bothacker-Tank | -7/Factory Scavenger-Mutant | -7/Garrison Scavenger-Tank | -6/Factory Scavenger-Tank | -6/Garrison Scavenger-Tank | -5/Factory Scavenger-Tank | -5/Garrison Bothacker-Tank | -5/Factory Scavenger-Tank | -5/Garrison Tank | -4/Factory Tank | -4/Garrison Tank | -4/Factory Botlord-Mutant | -4/Garrison Resources | -11 -10 -10 -8 -8 -8 -8 -7 -7 -7 -7 -6 -6 -5 -5 -5 -5 -4 -4 -4 -4 ----------- Run | Yrd Mat Sub Mat Gar Mat Gar Fac Gar Fac Gar Fac Gar Fac Gar Fac Gar Fac Gar Fac Gar Matter Collected 21576 | 254 274 683 1558 1140 641 1023 60 1119 43 1612 811 1878 1748 1493 613 2105 1783 1528 1130 80 Remotely . | . . . . . . . . . . . . . . . . . . . . . Salvage Created 21420 | 247 680 367 2196 918 788 1254 60 1084 43 1781 810 1289 2125 1479 589 1778 1389 1153 1220 170 Parts 1085 | 21 40 21 113 56 42 75 4 50 6 98 37 61 122 67 28 77 63 32 64 8 Haulers Intercepted 14 | . 2 . 6 . 1 . 1 . . . 2 . 1 . . . . . 1 . Recyclers Shooed 22 | . 3 . 1 . 1 . . . . . 1 . 10 . 1 . 3 . 2 . Parts Field Recycled . | . . . . . . . . . . . . . . . . . . . . . Retrieved Matter . | . . . . . . . . . . . . . . . . . . . . . Parts Self-Destructed 10 | . . 10 . . . . . . . . . . . . . . . . . . Prevented . | . . . . . . . . . . . . . . . . . . . . . Parts Restored . | . . . . . . . . . . . . . . . . . . . . . Kills | -11 -10 -10 -8 -8 -8 -8 -7 -7 -7 -7 -6 -6 -5 -5 -5 -5 -4 -4 -4 -4 ------- Run | Yrd Mat Sub Mat Gar Mat Gar Fac Gar Fac Gar Fac Gar Fac Gar Fac Gar Fac Gar Fac Gar Combat Hostiles Destroyed 384 | . 14 10 35 24 12 30 . 24 . 31 11 26 32 36 7 41 16 19 14 2 Melee 4 | . 1 . 1 . . . . 1 . . . . . . . 1 . . . . Guns 308 | . 10 6 30 15 12 20 . 14 . 31 10 23 31 18 7 32 16 19 12 2 Cannons 7 | . . 4 . . . 1 . . . . . . 1 . . . . . 1 . AOE 64 | . 3 . 4 9 . 8 . 9 . . 1 3 . 18 . 8 . . 1 . Classes Destroyed 23 | 3 4 4 4 1 . . . . . . 1 1 . 2 . 1 2 . . . Worker 18 | 1 1 . 2 . 1 . . . . . . . 5 . . . 4 . 4 . Builder 5 | . . . . . . . . . . . . . . . . . 2 . 3 . Tunneler 22 | 7 2 . 2 . 2 . 1 . 2 . 1 . 3 . 1 . 1 . . . Hauler 14 | . 2 . 6 . 1 . 1 . . . 2 . 1 . . . . . 1 . Recycler 7 | 1 . . . . 1 . . . . . . . 1 . 1 . 3 . . . Mechanic 1 | . . . . . . . . . . . . . . 1 . . . . . . Operator 4 | . . . 3 . 1 . . . . . . . . . . . . . . . Turret 1 | . . 1 . . . . . . . . . . . . . . . . . . Watcher 17 | . 3 . 5 . 1 . . 2 . 1 . 1 2 . . . 1 1 . . Swarmer 67 | . 2 . . 4 2 7 . 8 . 10 1 3 10 10 . 6 1 3 . . Cutter 10 | . . . . . . . . . . . . 3 . 4 . 3 . . . . Saboteur 1 | . . . . . . . . . . . . . . . . . 1 . . . Grunt 156 | . 12 1 22 12 6 16 . 5 . 11 . 13 4 15 4 21 7 4 3 . Brawler 12 | . . . 1 . . 1 . 1 . . . . . 1 . . 1 5 2 . Duelist 10 | . . . 1 1 . . . . . 1 . . . 2 . 1 1 3 . . Sentry 54 | . . 1 10 4 3 3 . 3 . 6 3 3 3 3 1 4 1 4 . 2 Specialist 2 | . . . . . . . . . . . 2 . . . . . . . . . Hunter 23 | . . . 1 1 1 1 . 3 . 1 2 . 5 . 2 . . . 6 . Programmer 39 | . . . . 3 . 2 . 4 . 2 3 3 10 1 . 4 3 1 3 . Behemoth 1 | . . . . . . . . . . . . . . 1 . . . . . . Immortal 1 | . . . . . . . . . . . . . . . . . 1 . . . Striker 2 | . . . . . . . . . . . . . . . . 2 . . . . Artisan 3 | . . 3 . . . . . . . . . . . . . . . . . . Subdweller 8 | . . 8 . . . . . . . . . . . . . . . . . . Savage 1 | . . . . . 1 . . . . . . . . . . . . . . . Infiltrator 2 | . . . . . . . . . . . . 1 . . . . . . 1 . Best Kill Streak 8 | 3 3 2 4 4 5 5 1 4 1 6 2 4 5 4 2 7 4 5 8 1 Combat Bots Only 7 | . 3 2 4 4 4 5 . 4 . 6 2 4 5 4 2 7 3 5 4 1 Max Kills in Single Turn 4 | 1 1 1 2 2 1 4 1 3 1 1 1 2 2 3 2 2 2 2 2 1 Gunslinging 1 | . . . . 1 . . . 1 . . . 1 1 . 1 1 . 1 . . Exploded 4 | . 1 . 2 2 . 4 . 3 . . 1 2 . 3 . 2 . . 1 . Melee 1 | . 1 . 1 . . . . 1 . . . . . . . 1 . . . . Uniques/NPCs Destroyed . | . . . . . . . . . . . . . . . . . . . . . Combat | -11 -10 -10 -8 -8 -8 -8 -7 -7 -7 -7 -6 -6 -5 -5 -5 -5 -4 -4 -4 -4 -------- Run | Yrd Mat Sub Mat Gar Mat Gar Fac Gar Fac Gar Fac Gar Fac Gar Fac Gar Fac Gar Fac Gar Hostile Shots Fired 2475 | . 48 56 201 136 69 120 . 218 6 160 182 102 214 96 47 145 117 70 428 60 Missed 692 | . 10 23 60 34 23 28 . 77 3 51 42 28 58 23 10 41 33 6 122 20 Hits 1783 | . 38 33 141 102 46 92 . 141 3 109 140 74 156 73 37 104 84 64 306 40 Melee 62 | . . . 4 7 . . . . . . . 13 . 5 . 5 12 8 8 . Projectile 1721 | . 38 33 137 95 46 92 . 141 3 109 140 61 156 68 37 99 72 56 298 40 AOE 6 | . . . . . . . . . . . . 3 1 . . . . . 2 . Critical Strikes 84 | . . 1 9 9 1 3 . 2 . 2 . 3 5 5 . 7 10 7 19 1 Part Disruptions 1 | . . . . . . . . . . . . . . . . 1 . . . . Damage Taken 27484 | . 463 652 2350 1388 705 1360 . 1418 16 1327 1483 1405 2642 1407 557 1494 1221 1030 5812 754 Core 2641 | . 93 75 209 101 74 134 . 79 . 121 78 125 105 129 82 86 117 24 899 110 Absorbed by Shields 3697 | . . . . 370 . . . 195 . 15 . . 146 312 143 806 972 706 . 32 Reduced by Siege Mode 713 | . . . . . . . . . . . 56 10 106 101 16 93 29 . 302 . Regen/Repaired (Parts) 4407 | . 65 . 338 . 222 . . . . . 259 . 1629 481 269 523 379 . 242 . Core Remaining (%) 57 | 100 . 32 . . . 5 . . . 71 . 76 . . . 59 . . . . Volleys Fired 1599 | 24 75 138 140 60 48 80 2 66 3 99 42 126 116 102 43 153 95 103 70 14 Largest 3 | 2 2 2 3 3 3 3 3 3 1 3 3 3 3 3 3 3 3 3 3 2 Hottest 282 | 70 100 100 123 101 69 75 76 131 5 135 135 156 165 105 105 120 120 45 282 161 Shots Fired 3544 | 48 134 180 398 128 146 167 6 151 3 223 110 258 288 196 91 323 268 245 160 21 Gun 3087 | 48 120 49 391 103 146 145 6 137 . 206 107 213 257 164 76 275 260 221 142 21 Cannon 144 | . . 36 . . . 7 . . . . 1 18 22 15 8 22 2 . 13 . Launcher 91 | . 4 11 7 11 . 12 . 12 . 2 . 5 . 17 . 9 . . 1 . Special 222 | . 10 84 . 14 . 3 . 2 3 15 2 22 9 . 7 17 6 24 4 . Kinetic 2792 | 24 61 79 324 111 146 148 6 130 . 171 94 213 226 164 76 261 255 221 82 . Thermal 575 | 24 69 94 74 . . . . 7 . 50 14 24 53 15 8 42 7 . 73 21 Explosive 52 | . 4 7 . . . . . 7 . 2 . 5 . 17 . 9 . . 1 . Electromagnetic 24 | . . . . 3 . 16 . 5 . . . . . . . . . . . . Robot Hit Streak 38 | 4 17 21 15 9 22 19 23 29 8 25 29 23 20 27 11 38 15 17 14 3 Robot Miss Streak 8 | 3 4 2 4 2 4 4 . 8 . 6 3 6 5 3 2 4 4 4 4 2 Penetration Max 2 | . . . . 1 . . . 1 . . 1 . 2 1 2 . . . 1 . Secondary Targets 61 | . . . 2 7 2 3 . 2 . 6 2 3 11 4 1 5 6 3 4 . Max Gunslinging Chain 2 | . . . 1 1 1 1 . 1 . 1 1 1 2 1 1 1 1 1 1 . Shots Hit Robots 2185 | 26 85 73 255 80 86 96 4 95 5 153 84 144 186 106 59 194 182 172 89 11 Core Hits 1040 | 13 43 23 109 52 39 53 2 45 2 94 35 71 90 68 24 93 73 61 45 5 Critical Kills 19 | . . . 2 . . . . . . . . 1 6 1 3 1 1 1 2 1 Critical Parts Destroyed 31 | . . . 1 1 . 1 . 2 . 1 1 . 11 5 3 1 1 . 2 1 Critical Strikes 63 | . 3 2 4 1 . 1 . 4 . 4 1 1 18 7 6 2 2 1 4 2 Burn 5 | . 3 . 1 . . . . 1 . . . . . . . . . . . . Destroy 53 | . . . 3 1 . 1 . 2 . 2 1 1 18 7 6 2 2 1 4 2 Blast 2 | . . 2 . . . . . . . . . . . . . . . . . . Sever 3 | . . . . . . . . 1 . 2 . . . . . . . . . . Melee Attacks 210 | . 1 5 5 48 . 33 . 50 5 63 . . . . . . . . . . Impact . | . . . . . . . . . . . . . . . . . . . . . Slashing 209 | . . 5 5 48 . 33 . 50 5 63 . . . . . . . . . . Piercing . | . . . . . . . . . . . . . . . . . . . . . Sneak Attacks 8 | . 1 2 . . . . . 2 2 1 . . . . . . . . . . Combat Hostiles . | . . . . . . . . . . . . . . . . . . . . . Follow-up Attacks . | . . . . . . . . . . . . . . . . . . . . . Damage Inflicted 52584 | 281 1163 1356 4541 2235 1302 2284 73 3610 146 3446 1706 3038 4202 5208 1080 5512 4123 3571 3445 262 Guns 40032 | 275 857 584 3932 1168 1298 1348 73 1629 . 2442 1595 2552 4081 2701 920 4153 4102 3571 2489 262 Cannons 877 | . . 497 . . . 96 . . . . . . 69 . 105 . . . 110 . Explosions 9492 | . 256 202 513 1062 . 840 . 1157 . 250 97 452 . 2507 . 1321 . . 835 . Melee 1654 | . . 73 . . . . . 780 146 655 . . . . . . . . . . Ramming 359 | 6 50 . 96 5 4 . . 44 . . 14 . 52 . 55 1 21 . 11 . Kinetic 37973 | 113 333 1189 3675 2168 1298 1787 73 1522 . 1720 1355 2552 3415 2701 920 4012 4049 3571 1520 . Thermal 5446 | 162 524 94 770 . . . . 107 . 821 240 34 735 . 105 178 53 . 1361 262 Explosive 6378 | . 256 . . . . . . 942 . 250 97 452 . 2507 . 1321 . . 553 . Electromagnetic 774 | . . . . 62 . 497 . 215 . . . . . . . . . . . . Impact . | . . . . . . . . . . . . . . . . . . . . . Slashing 1654 | . . 73 . . . . . 780 146 655 . . . . . . . . . . Piercing . | . . . . . . . . . . . . . . . . . . . . . Highest Corruption 23 | . . . 4 11 11 11 . 1 1 4 4 3 7 7 7 9 3 6 23 23 Average Corruption 6 | . . . 4 8 11 11 . 1 1 3 2 2 4 7 7 8 2 3 10 23 Corruption Purged 4 | . . . . . . . . . . . 4 . . . . . . . . . Corruption Blocked . | . . . . . . . . . . . . . . . . . . . . . Effects 539 | . . . 4 75 38 63 . 3 6 27 3 27 36 59 28 80 4 34 42 10 Message Errors 122 | . . . 1 16 10 10 . 2 2 3 2 5 3 11 6 23 1 14 10 3 Matter Fused 118 | . . . 1 21 6 13 . 1 2 5 . 8 8 17 5 13 . 7 9 2 Heat Flow Errors 70 | . . . . 9 4 12 . . 1 5 . 3 5 6 6 8 . 2 9 . Energy Discharges 59 | . . . . 9 3 9 . . . 2 . 3 3 7 3 12 . 5 3 . Parts Rejected 9 | . . . . . 2 . . . . 1 . 1 1 . . 1 . . 2 1 Parts Fused 8 | . . . . 1 . 1 . . . 1 . . 1 1 . 2 . 1 . . Data Loss (minor) 54 | . . . . 10 2 4 . . . 3 . 1 6 7 5 12 1 . 3 . Data Loss (major) 17 | . . . . 1 5 3 . . 1 1 . 2 2 . . . 1 . . 1 Misfires 31 | . . . 2 2 3 3 . . . 2 . 2 3 6 1 4 . . 2 1 Alerts 15 | . . . . 3 2 3 . . . 1 . . 1 1 . 1 1 1 1 . Misdirections 2 | . . . . . . . . . . . . . . . . . . . 1 1 Weapon Failures 34 | . . . . 3 1 5 . . . 3 1 2 3 3 2 4 . 4 2 1 Overload Shots . | . . . . . . . . . . . . . . . . . . . . . Overflow Damage 443 | . 8 2 5 16 . 18 . 71 . . . 43 . 224 5 . . . 51 . Projectiles 5 | . . . . . . . . . . . . . . . 5 . . . . . Explosions 414 | . 8 2 5 16 . 18 . 47 . . . 43 . 224 . . . . 51 . Melee 24 | . . . . . . . . 24 . . . . . . . . . . . . Knockbacks 7 | . . 3 . . . . . 1 . . 1 . . . 2 . . . . . Impact 4 | . . . . . . . . 1 . . 1 . . . 2 . . . . . Kinetic 3 | . . 3 . . . . . . . . . . . . . . . . . . Secondary . | . . . . . . . . . . . . . . . . . . . . . Self-Inflicted Damage 314 | . 13 48 . 104 . 16 . . . . . . . 21 . . . . 112 . Shots 10 | . 1 2 . 2 . 2 . . . . . . . 1 . . . . 2 . Rammed 49 | 1 12 . 11 2 1 . . 4 . . 3 . 7 . 6 . 1 . 1 . Targets Rammed 54 | 2 13 . 13 2 1 . . 4 . . 3 . 7 . 6 1 1 . 1 . Kicked . | . . . . . . . . . . . . . . . . . . . . . Crushed 5 | 1 1 . 2 . . . . . . . . . . . . 1 . . . . Highest Temperature 405 | 120 166 . 355 269 349 260 . 254 278 357 405 279 253 168 325 304 250 236 350 23 Average Temperature 80 | 41 36 . 86 53 69 90 . 67 139 122 132 86 72 38 114 87 38 43 79 12 Received Heat Transfer 5518 | . 231 177 1170 291 252 531 . 207 . 339 198 294 198 274 171 262 132 115 547 129 Effects 13 | . . . 1 . . 2 . . . 2 5 . 1 . . 2 . . . . Shutdowns 2 | . . . . . . . . . . . 2 . . . . . . . . . Energy Bleed 5 | . . . . . . 1 . . . 2 1 . 1 . . . . . . . Interference 3 | . . . . . . 1 . . . . . . . . . 2 . . . . Matter Decay 2 | . . . . . . . . . . . 2 . . . . . . . . . Short Circuit 1 | . . . 1 . . . . . . . . . . . . . . . . . Siege Activations 33 | . . . . . . . . . . 1 4 3 4 5 1 7 1 5 2 . Total Turns 470 | . . . . . . . . . . 4 44 15 74 123 15 114 13 25 43 . Longest Duration 32 | . . . . . . . . . . 4 15 9 28 32 15 31 13 8 29 . Martial Activations . | . . . . . . . . . . . . . . . . . . . . . Shielding Activations . | . . . . . . . . . . . . . . . . . . . . . Robots Disrupted . | . . . . . . . . . . . . . . . . . . . . . Combat Hostiles . | . . . . . . . . . . . . . . . . . . . . . Robots Corrupted 1 | . . . . . . 1 . . . . . . . . . . . . . . Combat Hostiles 1 | . . . . . . 1 . . . . . . . . . . . . . . Parts Fried 3 | . . . . . . 2 . 1 . . . . . . . . . . . . Impact Corruptions . | . . . . . . . . . . . . . . . . . . . . . Robots Melted . | . . . . . . . . . . . . . . . . . . . . . Combat Hostiles . | . . . . . . . . . . . . . . . . . . . . . Parts Melted 22 | . 2 1 . 1 1 . . 1 . 3 . . 6 2 . . . . 3 2 Heat Transferred 10953 | 481 1776 259 1961 . . . . 350 . 1911 525 125 1036 . 111 372 83 . 1556 407 Parts Sabotaged . | . . . . . . . . . . . . . . . . . . . . . Parts Stolen . | . . . . . . . . . . . . . . . . . . . . . Parts Stripped . | . . . . . . . . . . . . . . . . . . . . . Power Chain Reactions . | . . . . . . . . . . . . . . . . . . . . . Alert | -11 -10 -10 -8 -8 -8 -8 -7 -7 -7 -7 -6 -6 -5 -5 -5 -5 -4 -4 -4 -4 ------- Run | Yrd Mat Sub Mat Gar Mat Gar Fac Gar Fac Gar Fac Gar Fac Gar Fac Gar Fac Gar Fac Gar Maximum Alert Level 4 | . . . 2 4 3 4 3 3 2 3 2 3 2 4 2 4 4 4 3 2 Low Security (%) 25 | 100 100 . 84 . . . . . 73 12 29 1 . . . . . . . . Level 1 14 | . . . 9 7 23 8 31 46 14 18 63 24 19 7 . 14 . . . . Level 2 28 | . . . 6 30 71 21 21 27 11 37 7 40 80 27 100 21 37 . 63 100 Level 3 19 | . . . . 23 5 39 46 25 . 31 . 33 . 52 . 44 16 27 36 . Level 4 11 | . . . . 37 . 29 . . . . . . . 12 . 20 45 72 . . Level 5 . | . . . . . . . . . . . . . . . . . . . . . High Security . | . . . . . . . . . . . . . . . . . . . . . Max Security . | . . . . . . . . . . . . . . . . . . . . . Peak Influence 1478 | 10 122 . 511 1478 720 1431 751 823 431 850 445 931 529 1236 648 1352 1429 1362 780 518 Initial 977 | . 3 . 52 330 720 249 751 221 431 7 445 194 488 315 648 281 709 977 714 464 Average 518 | 1 30 . 130 853 444 895 594 488 149 527 261 555 437 781 500 769 1004 1172 669 497 Influence Increases 13267 | 45 578 120 1357 1238 420 1242 56 662 39 863 361 827 684 961 150 1131 1258 585 626 64 Destroy 0b10 Robot/C 6526 | . 280 60 700 680 260 680 . 360 . 456 156 444 384 444 84 516 456 336 210 20 Destroy 0b10 Robot/NC 402 | 45 40 . 90 . 35 5 10 16 8 15 9 6 36 . 6 6 39 3 33 . Destroy Leader 881 | . 70 . 222 40 74 30 . 32 . 32 64 12 96 24 18 36 62 18 51 . Allied During Kill 721 | . . . . 109 16 24 . 2 . . 11 40 . 24 . 79 306 84 26 . Successful Hack 330 | . 24 . 30 22 4 . 46 . 28 18 36 15 47 18 6 25 . 6 5 . Select Force Hacks 174 | . 60 . 60 . . . . . . . 18 . 18 . 18 . . . . . Disable Machine 483 | . . . 75 . . 15 . 24 . 12 36 18 36 18 . 36 99 18 96 . Anti-Garrison Action 1516 | . . . . 250 . 250 . 75 . 151 . 180 . 120 . 270 90 105 . 25 Destroy Structure 1479 | . 29 . 60 137 1 118 . 129 3 71 31 112 40 277 18 136 206 15 93 3 Partial Spotted 31 | . . . 15 . . . . . . . . . . . . . . . . 16 Lose Combat Pursuer 724 | . 75 60 105 . 30 120 . 24 . 108 . . 27 36 . 27 . . 112 . Influence Decreases 12799 | 40 467 136 948 269 1514 195 1170 156 852 23 933 174 1165 175 984 181 1213 620 1324 260 Entered New Map 6036 | . 2 56 48 179 758 135 680 96 392 3 405 84 443 135 588 121 643 420 648 200 Time Decay 4381 | 40 465 60 628 . 416 . 190 . 310 . 498 . 622 . 326 . 410 . 416 . Lost Part 662 | . . 20 62 50 . 20 . 40 . 10 20 30 90 . 10 . 20 20 210 60 Lost Ally 820 | . . . 60 40 40 40 . 20 . 10 10 60 10 40 60 60 140 180 50 . Purge Threat 900 | . . . 150 . 300 . 300 . 150 . . . . . . . . . . . Squads Dispatched 60 | . 4 . 15 . . . 1 . . . 8 . 9 . 4 . 9 . 10 . Investigation 19 | . 3 . 6 . . . . . . . 2 . 6 . 1 . 1 . . . Extermination 10 | . . . . . . . 1 . . . 3 . 3 . 1 . 1 . 1 . Reinforcement 11 | . 1 . 2 . . . . . . . 2 . . . 1 . 2 . 3 . Assault 8 | . . . 1 . . . . . . . . . . . . . 4 . 3 . Garrison 12 | . . . 6 . . . . . . . 1 . . . 1 . 1 . 3 . Intercept . | . . . . . . . . . . . . . . . . . . . . . Searches Triggered . | . . . . . . . . . . . . . . . . . . . . . Unchained Authorized 2 | . . . . . . . . . . . . . . . . . 1 . 1 . Construction Impeded 1 | . . . . . . . . . . . . . . . . . . . 1 . Haulers Reinforced . | . . . . . . . . . . . . . . . . . . . . . Active Scanning Responses . | . . . . . . . . . . . . . . . . . . . . . Cargo Convoy Interrupts . | . . . . . . . . . . . . . . . . . . . . . Stealth | -11 -10 -10 -8 -8 -8 -8 -7 -7 -7 -7 -6 -6 -5 -5 -5 -5 -4 -4 -4 -4 --------- Run | Yrd Mat Sub Mat Gar Mat Gar Fac Gar Fac Gar Fac Gar Fac Gar Fac Gar Fac Gar Fac Gar Distress Signals 17 | . . . 5 . 1 . . 1 . . . 1 1 . . . 1 . 7 . Communications Jammed 40 | . . . . . . . . 17 . 9 1 5 5 . 1 . 2 . . . Distress Signals 36 | . . . . . . . . 17 . 9 . 5 3 . 1 . 1 . . . Times Spotted 527 | . 24 15 55 30 18 37 1 24 4 32 11 34 42 30 8 34 43 28 51 6 Peak Tracking Total 10 | . 3 2 5 5 4 7 1 4 1 9 2 6 5 5 3 5 7 4 10 5 Tactical Retreats 33 | . 4 2 5 . 2 4 . 1 . 3 . . 1 1 . 3 . . 7 . Traps | -11 -10 -10 -8 -8 -8 -8 -7 -7 -7 -7 -6 -6 -5 -5 -5 -5 -4 -4 -4 -4 ------- Run | Yrd Mat Sub Mat Gar Mat Gar Fac Gar Fac Gar Fac Gar Fac Gar Fac Gar Fac Gar Fac Gar Traps Triggered 30 | . 1 2 3 4 . 1 . 2 . 3 1 3 . 2 . 2 . 5 . 1 Indirectly . | . . . . . . . . . . . . . . . . . . . . . Trap Hack Attempts 61 | . 60 . 1 . . . . . . . . . . . . . . . . . Triggered . | . . . . . . . . . . . . . . . . . . . . . Disarmed 1 | . . . 1 . . . . . . . . . . . . . . . . . Reprogrammed 6 | . 6 . . . . . . . . . . . . . . . . . . . Reused . | . . . . . . . . . . . . . . . . . . . . . Traps Extracted . | . . . . . . . . . . . . . . . . . . . . . Installed . | . . . . . . . . . . . . . . . . . . . . . Triggered . | . . . . . . . . . . . . . . . . . . . . . Machines | -11 -10 -10 -8 -8 -8 -8 -7 -7 -7 -7 -6 -6 -5 -5 -5 -5 -4 -4 -4 -4 ---------- Run | Yrd Mat Sub Mat Gar Mat Gar Fac Gar Fac Gar Fac Gar Fac Gar Fac Gar Fac Gar Fac Gar Machines Disabled 68 | . . 3 5 1 . 3 . 2 . 3 4 3 4 4 . 8 12 3 12 1 Max in Single Turn 4 | . . 2 2 1 . 1 . 2 . 1 2 1 2 1 . 1 1 1 4 1 Garrison Access 1 | . . . . . . . . . . . . . . . . . 1 . . . Garrison Relay 6 | . . . . . . 1 . . . . . . . 2 . 1 . 1 . 1 Machines Repaired . | . . . . . . . . . . . . . . . . . . . . . Machines Dismantled 1 | . . . . . . . . . . . . . . . . . . 1 . . Machines Sabotaged . | . . . . . . . . . . . . . . . . . . . . . Overloaded Fab Kills . | . . . . . . . . . . . . . . . . . . . . . Hacking | -11 -10 -10 -8 -8 -8 -8 -7 -7 -7 -7 -6 -6 -5 -5 -5 -5 -4 -4 -4 -4 --------- Run | Yrd Mat Sub Mat Gar Mat Gar Fac Gar Fac Gar Fac Gar Fac Gar Fac Gar Fac Gar Fac Gar Machines Accessed 90 | . 10 2 14 3 4 2 4 3 6 2 8 1 13 2 3 3 4 3 3 . Terminals 51 | . 7 . 9 3 2 2 1 3 4 2 3 1 5 2 . 3 1 3 . . Fabricators 6 | . . . . . . . 1 . . . 1 . 4 . . . . . . . Repair Stations 11 | . 1 . 1 . 1 . . . . . 2 . 2 . 1 . 2 . 1 . Recycling Units 7 | . 2 . 2 . . . . . . . 1 . 1 . 1 . . . . . Scanalyzers 3 | . . . 1 . . . 1 . . . . . . . . . . . 1 . Garrison Access 10 | . . . 1 . 1 . 1 . 2 . 1 . 1 . 1 . 1 . 1 . Total Hacks 242 | . 31 5 43 6 19 4 14 5 11 7 25 2 35 3 5 6 10 5 6 . Successful 130 | . 16 5 24 2 12 . 10 3 6 2 14 2 17 2 3 3 5 1 3 . Failed 112 | . 15 . 19 4 7 4 4 2 5 5 11 . 18 1 2 3 5 4 3 . Catastrophic 11 | . . . 2 1 . 1 . . . 1 1 . 4 . 1 . . . . . Database Lockouts . | . . . . . . . . . . . . . . . . . . . . . Manual 117 | . 25 . 25 3 12 2 8 2 3 4 14 1 10 2 2 2 1 1 . . Terminals 134 | . 26 . 25 6 11 4 3 5 7 7 9 2 13 3 . 6 2 5 . . Fabricators 18 | . . . . . . . 5 . . . 4 . 9 . . . . . . . Repair Stations 43 | . 2 . 8 . 4 . . . . . 8 . 8 . 2 . 7 . 4 . Recycling Units 10 | . 3 . 3 . . . . . . . 2 . 1 . 1 . . . . . Scanalyzers 6 | . . . 3 . . . 2 . . . . . . . . . . . 1 . Garrison Access 26 | . . . 4 . 4 . 4 . 4 . 2 . 4 . 2 . 1 . 1 . Terminal Hacks 39 | . 3 5 2 2 2 . 2 3 3 2 3 2 4 2 . 3 . 1 . . Record 4 | . . 4 . . . . . . . . . . . . . . . . . . Part Schematic 1 | . . . . . . . . . . . . . 1 . . . . . . . Robot Analysis 1 | . . . . . . . . . 1 . . . . . . . . . . . Prototype ID Bank 1 | . 1 . . . . . . . . . . . . . . . . . . . Level Access Points 1 | . . . . . . . . . . . 1 . . . . . . . . . Branch Access Points 1 | . . . . . . . . . . . . . 1 . . . . . . . Emergency Access Points 4 | . . . . . . . . 1 . 1 . 1 . . . 1 . . . . Terminal Index 1 | . 1 . . . . . . . . . . . . . . . . . . . Repair Station Index 1 | . . . . . . . . . 1 . . . . . . . . . . . Unreport Threat 6 | . . . 1 . 2 . 2 . 1 . . . . . . . . . . . Locate Traps 3 | . 1 . . . . . . . . . 1 . 1 . . . . . . . Hauler Manifests 1 | . . . . . . . . . . . 1 . . . . . . . . . Zone Layout 2 | . . . 1 . . . . . . . . . 1 . . . . . . . Garrison Registry 7 | . . . . 1 . . . 1 . 1 . 1 . 1 . 1 . 1 . . Patrol Navigation 3 | . . . . 1 . . . 1 . . . . . 1 . . . . . . Security Stations 1 | . . . . . . . . . . . . . . . . 1 . . . . Proto ID Catalog 1 | . . 1 . . . . . . . . . . . . . . . . . . Fabricator Hacks 5 | . . . . . . . 1 . . . . . 4 . . . . . . . Network Status 2 | . . . . . . . 1 . . . . . 1 . . . . . . . Load Schematic 1 | . . . . . . . . . . . . . 1 . . . . . . . Build 2 | . . . . . . . . . . . . . 2 . . . . . . . Repair Station Hacks 24 | . 2 . 6 . 4 . . . . . 4 . 3 . 1 . 3 . 1 . Scan Component 14 | . 1 . 3 . 2 . . . . . 2 . 2 . 1 . 2 . 1 . Repair 10 | . 1 . 3 . 2 . . . . . 2 . 1 . . . 1 . . . Recycling Unit Hacks . | . . . . . . . . . . . . . . . . . . . . . Scanalyzer 5 | . . . 2 . . . 2 . . . . . . . . . . . 1 . Retrieve Study 5 | . . . 2 . . . 2 . . . . . . . . . . . 1 . Garrison Access Hacks 10 | . . . 1 . 1 . 1 . 2 . 1 . 1 . 1 . 1 . 1 . Unlock Access 10 | . . . 1 . 1 . 1 . 2 . 1 . 1 . 1 . 1 . 1 . Unauthorized Hacks 47 | . 11 . 13 . 5 . 4 . 1 . 6 . 5 . 1 . 1 . . . Terminals 20 | . 9 . 8 . 3 . . . . . . . . . . . . . . . Assimilate 3 | . 3 . . . . . . . . . . . . . . . . . . . Botnet 1 | . . . . . 1 . . . . . . . . . . . . . . . Operators 2 | . 1 . . . 1 . . . . . . . . . . . . . . . Skim 14 | . 5 . 8 . 1 . . . . . . . . . . . . . . . Fabricators 5 | . . . . . . . 2 . . . 2 . 1 . . . . . . . Liberate 2 | . . . . . . . 1 . . . 1 . . . . . . . . . Haulers 3 | . . . . . . . 1 . . . 1 . 1 . . . . . . . Repair Stations 3 | . . . . . . . . . . . 1 . 1 . . . 1 . . . Mechanics 3 | . . . . . . . . . . . 1 . 1 . . . 1 . . . Recycling Units 8 | . 2 . 2 . . . . . . . 2 . 1 . 1 . . . . . Recyclers 1 | . . . . . . . . . . . 1 . . . . . . . . . Tunnel 7 | . 2 . 2 . . . . . . . 1 . 1 . 1 . . . . . Scanalyzers . | . . . . . . . . . . . . . . . . . . . . . Garrison Access 11 | . . . 3 . 2 . 2 . 1 . 1 . 2 . . . . . . . Reprogram 3 | . . . 1 . 1 . . . . . . . 1 . . . . . . . Intercept 6 | . . . 1 . 1 . 1 . 1 . 1 . 1 . . . . . . . Watchers 2 | . . . 1 . . . 1 . . . . . . . . . . . . . Data Cores Recovered 2 | . . . 2 . . . . . . . . . . . . . . . . . Used . | . . . . . . . . . . . . . . . . . . . . . Hacking Detections 73 | . 9 . 13 2 4 1 3 2 6 1 6 1 11 1 2 2 4 2 3 . Full Trace Events 12 | . . . . 1 . 2 . . . 2 1 . 4 . . . 1 1 . . Feedback Events 3 | . . . . 1 . . . . . 1 . . . . . . . 1 . . Corruption 3 | . . . . 1 . . . . . 1 . . . . . . . 1 . . Feedback Blocked . | . . . . . . . . . . . . . . . . . . . . . Robot Schematics Acquired . | . . . . . . . . . . . . . . . . . . . . . Robots Built . | . . . . . . . . . . . . . . . . . . . . . Authchips . | . . . . . . . . . . . . . . . . . . . . . Time . | . . . . . . . . . . . . . . . . . . . . . Total Robot Build Rating . | . . . . . . . . . . . . . . . . . . . . . Part Schematics Acquired 1 | . . . . . . . . . . . . . 1 . . . . . . . Parts Built 3 | . . . . . . . . . . . . . 3 . . . . . . . Authchips . | . . . . . . . . . . . . . . . . . . . . . Time 83 | . . . . . . . . . . . . . 83 . . . . . . . Total Part Build Rating 15 | . . . . . . . . . . . . . 15 . . . . . . . Part Studies Acquired 5 | . . . 2 . . . 2 . . . . . . . . . . . 1 . Parts Repaired 10 | . 1 . 3 . 2 . . . . . 2 . 1 . . . 1 . . . Time 410 | . 26 . 108 . 76 . . . . . 110 . 28 . . . 62 . . . Parts Recycled . | . . . . . . . . . . . . . . . . . . . . . Recycled Matter . | . . . . . . . . . . . . . . . . . . . . . Retrieved Matter . | . . . . . . . . . . . . . . . . . . . . . Retrieved Components . | . . . . . . . . . . . . . . . . . . . . . Parts Scanalyzed . | . . . . . . . . . . . . . . . . . . . . . Part Schematics Acquired . | . . . . . . . . . . . . . . . . . . . . . Parts Damaged . | . . . . . . . . . . . . . . . . . . . . . Bothacking | -11 -10 -10 -8 -8 -8 -8 -7 -7 -7 -7 -6 -6 -5 -5 -5 -5 -4 -4 -4 -4 ------------ Run | Yrd Mat Sub Mat Gar Mat Gar Fac Gar Fac Gar Fac Gar Fac Gar Fac Gar Fac Gar Fac Gar Used RIF Installer 11 | . . . . 1 . 1 . 1 . 2 . 1 . 1 . 2 . 2 . . Code Merge 1 | . . . . . . . . . . 1 . . . . . . . . . . Threat Obfuscator 3 | . . . . . . . . 1 . 1 . . . . . . . 1 . . Zone Cloak 1 | . . . . . . . . . . . . . . 1 . . . . . . Robot Detection 1 | . . . . . . . . . . . . . . . . 1 . . . . Patrol Navigation 1 | . . . . . . . . . . . . 1 . . . . . . . . Structural Interface 1 | . . . . . . . . . . . . . . . . . . 1 . . Program Shield 1 | . . . . . . 1 . . . . . . . . . . . . . . Autooverride 1 | . . . . . . . . . . . . . . . . 1 . . . . Robots Hacked 35 | . . . . . . . . 2 1 . 2 5 4 . 4 3 5 5 4 . Non-combat 16 | . . . . . . . . . 1 . 2 . 4 . 4 . 2 . 3 . Combat 19 | . . . . . . . . 2 . . . 5 . . . 3 3 5 1 . Autooverrided 4 | . . . . . . . . . . . . . . . . . 1 2 1 . Robot Hacks Applied 36 | . . . . . . . . 2 2 . 2 6 5 . 4 3 6 3 3 . parse_system 6 | . . . . . . . . . . . . 3 . . . 3 . . . . find_chute 2 | . . . . . . . . . . . 1 . . . . . 1 . . . map_walls 1 | . . . . . . . . . . . . . 1 . . . . . . . find_fabricator 2 | . . . . . . . . . . . . . . . 1 . 1 . . . drop_inventory 3 | . . . . . . . . . . . . . . . 1 . 1 . 1 . find_recycling 1 | . . . . . . . . . . . 1 . . . . . . . . . find_station 1 | . . . . . . . . . . . . . 1 . . . . . . . block_reporting 1 | . . . . . . . . . 1 . . . . . . . . . . . mark_security 1 | . . . . . . . . . . . . . 1 . . . . . . . find_garrison 1 | . . . . . . . . . . . . . . . . . 1 . . . disrupt_area 1 | . . . . . . . . . . . . . . . . . . 1 . . amplify_resonance 4 | . . . . . . . . 1 . . . 1 . . . . 1 . 1 . overwrite_iff 3 | . . . . . . . . 1 . . . 1 . . . . 1 . . . formatsys_low 6 | . . . . . . . . . 1 . . . 2 . 2 . . . 1 . formatsys_high 3 | . . . . . . . . . . . . 1 . . . . . 2 . . Relay Couplers Released 30 | . . . . . . 4 . . . . 3 . . 8 . 4 3 5 . 3 Machine Destruction 27 | . . . . . . 4 . . . . . . . 8 . 4 3 5 . 3 Programmers 3 | . . . . . . . . . . . 3 . . . . . . . . . Attached 12 | . . . . . . . . 1 1 . . 3 . 2 . 1 1 1 . 2 Merged Code Value 79 | . . . . . . . . . . . . 21 . 14 . 28 . 7 . 9 Fabnet Peak Effective % . | . . . . . . . . . . . . . . . . . . . . . Robots Rewired 29 | . . . . 6 . 2 . . . . . 6 . 3 . 5 . 7 . . Allies Hacked 2 | . . . . . . . . . . . 1 . 1 . . . . . . . Hacks Repelled . | . . . . . . . . . . . . . . . . . . . . . Allies | -11 -10 -10 -8 -8 -8 -8 -7 -7 -7 -7 -6 -6 -5 -5 -5 -5 -4 -4 -4 -4 -------- Run | Yrd Mat Sub Mat Gar Mat Gar Fac Gar Fac Gar Fac Gar Fac Gar Fac Gar Fac Gar Fac Gar Total Allies 60 | . . . 3 6 . 2 . 1 1 . 2 10 5 3 2 7 2 14 2 . Largest Group 9 | . . . 2 6 3 2 . 1 1 1 2 8 4 4 3 5 5 9 2 . Highest-Rated Group 365 | . . . 10 86 71 62 . 16 26 26 64 245 110 110 46 325 325 365 190 . Highest-Rated Ally 119 | . . . 5 31 31 31 . 16 26 26 32 85 29 29 23 119 119 95 95 . Total Orders 41 | . . . . 2 . . . . . 3 2 4 2 5 7 14 . . 2 . STAY 19 | . . . . 1 . . . . . 2 . 2 . 2 2 9 . . 1 . FOLLOW 7 | . . . . 1 . . . . . 1 . 2 . . 2 1 . . . . AID 13 | . . . . . . . . . . . . . 2 3 3 4 . . 1 . EXPLORE 2 | . . . . . . . . . . . 2 . . . . . . . . . Ally Attacks 385 | . . . 7 55 6 24 . 4 . . 12 33 . 36 3 9 111 62 23 . Total Damage 11904 | . . . 62 713 115 404 . 26 . . 366 1488 . 520 9 409 4357 2198 1237 . Kills 79 | . . . . 10 1 5 . . . . 2 12 . 1 . 2 26 10 10 . Allies Corrupted 2 | . . . . . . . . 1 . . . . . . . . . 1 . . Allies Melted . | . . . . . . . . . . . . . . . . . . . . . Intel | -11 -10 -10 -8 -8 -8 -8 -7 -7 -7 -7 -6 -6 -5 -5 -5 -5 -4 -4 -4 -4 ------- Run | Yrd Mat Sub Mat Gar Mat Gar Fac Gar Fac Gar Fac Gar Fac Gar Fac Gar Fac Gar Fac Gar Active Infowar (turns) 28179 | 125 1970 6924 3511 569 522 1706 380 1091 541 1358 829 1721 1922 1753 473 536 908 780 560 . Seismic 20663 | 125 1970 6924 3511 569 522 1706 380 742 541 1172 317 . 851 . 320 173 318 . 522 . Jamming 7838 | . . . . . . . . 445 . 186 512 1721 1241 1753 153 363 590 780 94 . Robot Analysis Total 1 | . . . . . . . . . 1 . . . . . . . . . . . Derelict Logs Recovered 1 | . . 1 . . . . . . . . . . . . . . . . . . Drone Launches 2 | . . . . . . . . . . . 2 . . . . . . . . . Drone Recoveries . | . . . . . . . . . . . . . . . . . . . . . Exploration | -11 -10 -10 -8 -8 -8 -8 -7 -7 -7 -7 -6 -6 -5 -5 -5 -5 -4 -4 -4 -4 ------------- Run | Yrd Mat Sub Mat Gar Mat Gar Fac Gar Fac Gar Fac Gar Fac Gar Fac Gar Fac Gar Fac Gar Turns Passed 37137 | 232 3223 6924 3688 2022 1017 1706 380 1610 691 1652 1335 2118 2104 1789 734 2392 987 1369 1011 153 Spaces Moved 16205 | 76 1249 2400 1541 786 354 792 218 713 421 704 671 1018 945 823 336 1117 442 648 789 162 Core 93 | . . . . . . . . . . . . . . . . . . . 93 . Treads 15622 | 76 1249 2400 1541 786 354 792 218 713 421 704 671 1018 945 823 336 1117 442 648 365 3 Legs . | . . . . . . . . . . . . . . . . . . . . . Wheels . | . . . . . . . . . . . . . . . . . . . . . Hover . | . . . . . . . . . . . . . . . . . . . . . Flight 490 | . . . . . . . . . . . . . . . . . . . 331 159 Fastest Speed 40 | 160 160 240 160 206 163 160 160 156 156 155 160 160 160 160 160 160 155 145 40 40 Average Speed 175 | 160 220 240 170 208 195 162 160 159 156 158 160 160 160 160 161 160 156 153 90 43 Slowest Speed 240 | 160 240 240 240 210 210 163 160 200 156 160 163 163 160 160 240 160 160 155 152 240 Overloaded Moves . | . . . . . . . . . . . . . . . . . . . . . Propulsion Burnouts . | . . . . . . . . . . . . . . . . . . . . . Robots Hopped 13 | . . . . . . . . . . . . . . . . . 1 . 12 . Potential Cave-ins 2 | . . . . . . . . . . . . . 2 . . . . . . . Cave-ins Triggered . | . . . . . . . . . . . . . . . . . . . . . Exploration Rate (%) 50 | 4 99 98 81 83 33 89 4 83 12 64 17 79 22 75 6 92 12 87 15 14 Regions Visited 20 Branch Regions 1 Pre-discovered Areas 8 | . 2 . 3 . . . . . . . 1 . 1 . 1 . . . . . Known Exits Taken 9 | . . . 1 . 1 . 1 . 1 . 1 . 1 . 1 . 1 . 1 . Unknown Exits Taken 3 | 1 1 1 . . . . . . . . . . . . . . . . . . Scrap Searched 5 | . . 5 . . . . . . . . . . . . . . . . . . Spaces Dug 215 | . 10 23 17 26 . 20 . 22 3 34 4 5 16 11 5 7 2 . 10 . Terrain Destroyed 898 | . 39 67 55 72 . 49 . 84 3 51 37 47 24 164 11 90 6 . 99 . Melee 110 | . . . 5 26 . 20 . 22 3 34 . . . . . . . . . . Projectile 139 | . 10 3 1 . . . . 4 . . . 13 22 18 11 14 6 . 37 . AOE 646 | . 29 64 49 46 . 29 . 58 . 17 37 33 . 146 . 76 . . 62 . Terrain Rammed . | . . . . . . . . . . . . . . . . . . . . . Walls Destroyed . | . . . . . . . . . . . . . . . . . . . . . Machines Disabled . | . . . . . . . . . . . . . . . . . . . . . Actions | -11 -10 -10 -8 -8 -8 -8 -7 -7 -7 -7 -6 -6 -5 -5 -5 -5 -4 -4 -4 -4 --------- Run | Yrd Mat Sub Mat Gar Mat Gar Fac Gar Fac Gar Fac Gar Fac Gar Fac Gar Fac Gar Fac Gar Total 21894 | 141 1567 3209 2288 1004 573 1025 244 1009 451 1042 853 1329 1310 1138 461 1527 616 911 974 222 Wait 2507 | 35 115 611 477 37 136 70 4 84 1 90 89 97 143 105 38 160 36 109 47 23 Move 16161 | 75 1248 2399 1540 785 353 791 217 712 420 703 670 1017 944 822 335 1116 440 647 765 162 Hop 13 | . . . . . . . . . . . . . . . . . 1 . 12 . Pick Up 223 | 2 22 13 24 18 6 7 5 16 4 10 8 15 23 15 6 11 8 4 6 . Fast Attach 114 | 1 2 . 10 . 7 . . 9 2 8 9 6 14 10 5 9 2 4 10 6 Attach 114 | . 1 2 10 8 . 2 2 11 . 4 4 10 9 13 1 6 7 2 20 2 Detach 43 | . . . 3 . . . . 1 . 1 1 3 4 10 . 7 4 . 8 1 Swap 452 | 2 17 27 34 31 8 34 8 30 7 37 15 35 31 21 15 33 18 23 26 . Drop 277 | . 13 14 31 9 14 7 5 23 9 24 11 18 19 27 12 19 4 9 9 . Fire 1599 | 24 75 138 140 60 48 80 2 66 3 99 42 126 116 102 43 153 95 103 70 14 Melee 210 | . 1 5 5 48 . 33 . 50 5 63 . . . . . . . . . . Ram 1 | . . . . . . . . . . . . . . . . . . . 1 . Kick . | . . . . . . . . . . . . . . . . . . . . . Crush 53 | 2 13 . 13 2 1 . . 4 . . 3 . 7 . 6 1 1 . . . Escape Stasis 19 | . . . . 4 . . . . . 1 . . . . . . . . . 14 Rewire 24 | . . . . . . . . 1 . . . 1 . 11 . 10 . 1 . . Trap 61 | . 60 . 1 . . . . . . . . . . . . . . . . . Miscellaneous 23 | . . . . 2 . 1 1 2 . 2 1 1 . 2 . 2 . 9 . . Route ------- -11/Scrapyard -10/Materials (discovered 5 exits: *Mat x3 / [*Min] / *Sub) -10/Subcaves (discovered 3 exits: *Mat x2 / [*Rec]) -8/Materials (discovered 4 exits: *Fac x2 / *Sto / Gar) -8/Garrison (discovered 4 exits: *Mat x4) -8/Materials (discovered 2 exits: *Sto / Gar) -8/Garrison (discovered 3 exits: *Fac x3) -7/Factory -7/Garrison (discovered 4 exits: *Fac x4) -7/Factory (discovered 3 exits: [*Low] / Gar / Gar) -7/Garrison (discovered 3 exits: *Fac x3) -6/Factory (discovered 6 exits: Fac x4 / [*Low] / Gar) -6/Garrison (discovered 3 exits: *Fac x3) -5/Factory (discovered 3 exits: *Upp x2 / Gar) -5/Garrison (discovered 4 exits: *Fac x4) -5/Factory -5/Garrison (discovered 3 exits: *Fac x3) -4/Factory -4/Garrison (discovered 3 exits: *Fac x3) -4/Factory -4/Garrison History --------- Turn | Location | Event 21 | -11/Scrapyard | Discovered new exit (range 3) 233 | -11/Scrapyard | Entered Materials 312 | -10/Materials | Build established: Mutant 486 | -10/Materials | Discovered new exit (range 13) 737 | -10/Materials | Discovered new exit (range 16) 1107 | -10/Materials | Discovered new exit (range 11) 1135 | -10/Materials | Learned Storage garrison access intel 1156 | -10/Materials | Discovered new exit (range 5) 1241 | -10/Materials | Learned 2 Storage zone layouts 1347 | -10/Materials | Learned Storage emergency access door positions 1398 | -10/Materials | Identified exit to Materials 2758 | -10/Materials | Repaired Med. Laser 3456 | -10/Materials | Entered Subcaves 3706 | -10/Subcaves | Learned Materials stockpile data 3719 | -10/Subcaves | A swath of the cavern ceiling suddenly collapsed 3914 | -10/Subcaves | Visited 4L-MR0's lab 3940 | -10/Subcaves | Found Power Bank 6531 | -10/Subcaves | Visited Clippyterm 6538 | -10/Subcaves | Learned Research machine intel 6711 | -10/Subcaves | Shifting Twisted Machinery released Sub. Power Source 6782 | -10/Subcaves | Shifting Twisted Machinery released Sub. Monowheel 6955 | -10/Subcaves | A swath of the cavern ceiling suddenly collapsed 7444 | -10/Subcaves | Core integrity fell below 50% 8060 | -10/Subcaves | Discovered new exit (range 8) 8075 | -10/Subcaves | Ambushed by Subdweller buried in earth 8415 | -10/Subcaves | Discovered new exit (range 13) 8670 | -10/Subcaves | Discovered new exit (range 10) 10380 | -10/Subcaves | Entered Materials 10380 | -8/Materials | Evolved 4 slots: Propulsion x1, Utility x2, Weapon x1 10381 | -8/Materials | Identified exit to Storage 10720 | -8/Materials | Build established: Gunner 11110 | -8/Materials | Build established: Scavenger-Tank 12232 | -8/Materials | Repaired Imp. Medium Armor Plating 12268 | -8/Materials | Repaired Hvy. Assault Rifle 12302 | -8/Materials | Repaired Hvy. Assault Rifle 12448 | -8/Materials | Discovered new exit (range 6) 12840 | -8/Materials | Discovered new exit (range 16) 12916 | -8/Materials | Identified exit to Garrison 12928 | -8/Materials | Learned Factory repair station intel 12999 | -8/Materials | Learned Storage trap positions 13059 | -8/Materials | Learned location of 1 exit from Storage 13148 | -8/Materials | Learned 4 Lower Caves zone layouts 13197 | -8/Materials | Learned 4 Recycling zone layouts 13258 | -8/Materials | Learned 2 Lower Caves zone layouts 13517 | -8/Materials | Garrison activated, responded to threat 13554 | -8/Materials | Lost 3 allies 13825 | -8/Materials | Garrison activated, responded to threat 13980 | -8/Materials | First assault squad dispatched 14068 | -8/Materials | Entered Garrison 14087 | -8/Garrison | Installed Relay Interface Framework 14210 | -8/Garrison | Triggered checkpoint 14423 | -8/Garrison | Triggered checkpoint 14461 | -8/Garrison | Triggered checkpoint 14647 | -8/Garrison | System corruption reached 10% 14668 | -8/Garrison | Lost 3 parts (1n2u) 14866 | -8/Garrison | Discovered new exit (range 10) 15081 | -8/Garrison | Triggered checkpoint 15145 | -8/Garrison | Discovered new exit (range 3) 15251 | -8/Garrison | Triggered checkpoint 15257 | -8/Garrison | Core integrity fell below 50% 15642 | -8/Garrison | Discovered new exit (range 12) 15778 | -8/Garrison | Triggered checkpoint 15860 | -8/Garrison | Triggered checkpoint 15885 | -8/Garrison | Discovered new exit (range 34) 15885 | -8/Garrison | Discovered new exit (range 70) 15885 | -8/Garrison | Discovered new exit (range 20) 15885 | -8/Garrison | Discovered new exit (range 50) 16077 | -8/Garrison | Build established: Tank 16090 | -8/Garrison | Entered Materials 16090 | -8/Materials | Accompanied by 3 allies 16627 | -8/Materials | Discovered exit to Storage (range 15) 16694 | -8/Materials | Build established: Scavenger-Tank 16850 | -8/Materials | Identified exit to Garrison 16963 | -8/Materials | Repaired Imp. Medium Armor Plating 16996 | -8/Materials | Repaired Multitool 17107 | -8/Materials | Entered Garrison 17515 | -8/Garrison | Triggered checkpoint 17680 | -8/Garrison | Core integrity fell below 20% 17742 | -8/Garrison | Discovered new exit (range 12) 17807 | -8/Garrison | Triggered checkpoint 18017 | -8/Garrison | Triggered checkpoint 18089 | -8/Garrison | Triggered checkpoint 18171 | -8/Garrison | Garrison Relay disabled 18298 | -8/Garrison | Discovered new exit (range 10) 18383 | -8/Garrison | Triggered checkpoint 18473 | -8/Garrison | Discovered new exit (range 13) 18668 | -8/Garrison | Triggered checkpoint 18705 | -8/Garrison | Expanded RIF knowledge: Program Shield 18733 | -8/Garrison | Triggered checkpoint 18813 | -8/Garrison | Entered Factory 18813 | -7/Factory | Evolved 2 slots: Propulsion x1, Utility x1 18814 | -7/Factory | Loaded intel: 6 repair station locations 18903 | -7/Factory | Identified exit to Garrison 19193 | -7/Factory | Entered Garrison 19231 | -7/Garrison | Expanded RIF knowledge: Threat Obfuscation 19491 | -7/Garrison | Triggered checkpoint 19630 | -7/Garrison | Discovered new exit (range 21) 19630 | -7/Garrison | Discovered new exit (range 37) 19630 | -7/Garrison | Discovered new exit (range 75) 19630 | -7/Garrison | Discovered new exit (range 81) 20082 | -7/Garrison | Triggered checkpoint 20293 | -7/Garrison | Triggered checkpoint 20723 | -7/Garrison | Triggered checkpoint 20803 | -7/Garrison | Entered Factory 21012 | -7/Factory | Build established: Bothacker-Tank 21131 | -7/Factory | Identified exit to Garrison 21184 | -7/Factory | Identified exit to Garrison 21243 | -7/Factory | Discovered new exit (range 16) 21494 | -7/Factory | Entered Garrison 21494 | -7/Garrison | Accompanied by 1 ally 21758 | -7/Garrison | Triggered checkpoint 21906 | -7/Garrison | Triggered checkpoint 21932 | -7/Garrison | Triggered checkpoint 22158 | -7/Garrison | Discovered new exit (range 13) 22206 | -7/Garrison | Triggered checkpoint 22251 | -7/Garrison | Expanded RIF knowledge: Code Merge 22616 | -7/Garrison | Discovered new exit (range 72) 22616 | -7/Garrison | Discovered new exit (range 56) 22616 | -7/Garrison | Discovered new exit (range 15) 22920 | -7/Garrison | Expanded RIF knowledge: Threat Obfuscation 23146 | -7/Garrison | Entered Factory 23146 | -6/Factory | Evolved 2 slots: Power x1, Propulsion x1 23376 | -6/Factory | Build established: Scavenger-Tank 23958 | -6/Factory | Discovered new exit (range 8) 24136 | -6/Factory | Identified exit to Factory 24140 | -6/Factory | Repaired Coil Gun? 24256 | -6/Factory | Identified exit to Garrison 24288 | -6/Factory | Repaired Enh. Autogun 24440 | -6/Factory | Garrison activated, responded to threat 24481 | -6/Factory | Entered Garrison 24694 | -6/Garrison | Build established: Tank 24762 | -6/Garrison | Triggered checkpoint 24833 | -6/Garrison | Triggered checkpoint 24888 | -6/Garrison | Triggered checkpoint 25176 | -6/Garrison | Triggered checkpoint 25201 | -6/Garrison | Spotted B-75 Beast 25208 | -6/Garrison | Assimilated Beast 5a with formatsys_high 25215 | -6/Garrison | Triggered checkpoint 25292 | -6/Garrison | Triggered checkpoint 25365 | -6/Garrison | Expanded RIF knowledge: Patrol Navigation 25517 | -6/Garrison | Discovered exit to Factory (range 14) 25580 | -6/Garrison | Triggered checkpoint 25597 | -6/Garrison | Build established: Scavenger-Tank 25710 | -6/Garrison | Triggered checkpoint 25739 | -6/Garrison | Found embedded Infiltrators 25814 | -6/Garrison | Discovered exit to Factory (range 5) 25881 | -6/Garrison | Triggered checkpoint 25961 | -6/Garrison | Discovered exit to Factory (range 22) 25961 | -6/Garrison | Discovered exit to Factory (range 57) 25961 | -6/Garrison | Discovered exit to Factory (range 48) 26398 | -6/Garrison | Lost 6 allies 26478 | -6/Garrison | P-60 Hacker assimilated allied QL-EBC(x) 26599 | -6/Garrison | Entered Factory 26599 | -5/Factory | Evolved 2 slots: Propulsion x1, Utility x1 26631 | -5/Factory | Identified exit to Upper Caves 26971 | -5/Factory | Repaired Broken Imp. Heavy Treads 27261 | -5/Factory | Fabricated Imp. Remote Shield? 27810 | -5/Factory | Fabricated Huge Storage Unit (x1) 28350 | -5/Factory | Identified exit to Garrison 28703 | -5/Factory | Entered Garrison 28703 | -5/Garrison | Accompanied by 4 allies 28749 | -5/Garrison | Triggered checkpoint 28947 | -5/Garrison | Triggered checkpoint 29051 | -5/Garrison | Triggered checkpoint 29055 | -5/Garrison | Spotted B-75 Beast 29098 | -5/Garrison | Lost 3 allies 29098 | -5/Garrison | Destroyed B-75 Beast 29174 | -5/Garrison | Discovered new exit (range 52) 29174 | -5/Garrison | Discovered new exit (range 55) 29174 | -5/Garrison | Discovered new exit (range 46) 29174 | -5/Garrison | Discovered new exit (range 60) 29212 | -5/Garrison | Triggered checkpoint 29425 | -5/Garrison | Expanded RIF knowledge: Zone Cloak 29747 | -5/Garrison | Spotted Striker 29747 | -5/Garrison | Spotted Striker 30130 | -5/Garrison | Found Relay Coupler [Proto] 30276 | -5/Garrison | Triggered checkpoint 30344 | -5/Garrison | Triggered checkpoint 30451 | -5/Garrison | Garrison Relay disabled 30492 | -5/Garrison | Entered Factory 30492 | -5/Factory | Accompanied by 3 allies 30600 | -5/Factory | Lost 3 allies 30735 | -5/Factory | Identified exit to Garrison 30767 | -5/Factory | Build established: Bothacker-Tank 30921 | -5/Factory | Garrison activated, responded to threat 31226 | -5/Factory | Entered Garrison 31226 | -5/Garrison | Accompanied by 2 allies 31250 | -5/Garrison | Triggered checkpoint 31359 | -5/Garrison | Found embedded Infiltrators 31543 | -5/Garrison | Spotted B-75 Beast 31546 | -5/Garrison | Allies destroyed B-75 Beast 31546 | -5/Garrison | Triggered checkpoint 31556 | -5/Garrison | Triggered checkpoint 31611 | -5/Garrison | Destroyed 7 combat bots 31663 | -5/Garrison | Expanded RIF knowledge: Autooverride 31750 | -5/Garrison | Build established: Scavenger-Tank 31840 | -5/Garrison | Triggered checkpoint 31972 | -5/Garrison | Triggered checkpoint 32026 | -5/Garrison | Discovered new exit (range 12) 32120 | -5/Garrison | Triggered checkpoint 32363 | -5/Garrison | Discovered new exit (range 14) 32424 | -5/Garrison | Triggered checkpoint 32471 | -5/Garrison | Discovered new exit (range 58) 32471 | -5/Garrison | Discovered new exit (range 43) 32471 | -5/Garrison | Discovered new exit (range 18) 32513 | -5/Garrison | Learned Factory security intel 32596 | -5/Garrison | Triggered checkpoint 32652 | -5/Garrison | Expanded RIF knowledge: Robot Detection 32819 | -5/Garrison | Spotted B-75 Beast 32920 | -5/Garrison | Spotted Striker 32920 | -5/Garrison | Spotted Striker 32961 | -5/Garrison | Destroyed Striker 32999 | -5/Garrison | Destroyed Striker 33048 | -5/Garrison | Rewired Executioner 33051 | -5/Garrison | Rewired Executioner 33091 | -5/Garrison | Triggered checkpoint 33127 | -5/Garrison | Triggered checkpoint 33153 | -5/Garrison | Build established: Tank 33496 | -5/Garrison | Build established: Commander-Tank 33618 | -5/Garrison | Entered Factory 33618 | -4/Factory | Accompanied by 5 allies 33618 | -4/Factory | Evolved 2 slots: Utility x2 33770 | -4/Factory | Unchained authorized (CL-0N3) 33868 | -4/Factory | First assault squad dispatched 33903 | -4/Factory | Repaired Imp. Heavy Treads 34090 | -4/Factory | T-07 Excavator reconstituted as Immortal 34091 | -4/Factory | Spotted Immortal 34102 | -4/Factory | Destroyed Immortal 34102 | -4/Factory | Immortal reconstituted as CL-0N3 34260 | -4/Factory | Garrison activated, responded to threat 34324 | -4/Factory | Build established: Tank 34374 | -4/Factory | K-01 Serf reconstituted as Immortal 34375 | -4/Factory | Spotted Immortal 34401 | -4/Factory | Allies destroyed Immortal 34401 | -4/Factory | Immortal reconstituted as CL-0N3 34573 | -4/Factory | Found Corrupted Exp. Core Analyzer 34579 | -4/Factory | Found Corrupted Exp. Core Analyzer 34603 | -4/Factory | Identified exit to Garrison 34605 | -4/Factory | Entered Garrison 34633 | -4/Garrison | Triggered checkpoint 34667 | -4/Garrison | Triggered checkpoint 34719 | -4/Garrison | Expanded RIF knowledge: Structural Interface 34761 | -4/Garrison | Garrison Relay disabled 35182 | -4/Garrison | Rescued a captive Derelict 35244 | -4/Garrison | Spotted B-86 Titan 35253 | -4/Garrison | Triggered checkpoint 35276 | -4/Garrison | Allies destroyed B-86 Titan 35352 | -4/Garrison | Lost 9 allies 35485 | -4/Garrison | Discovered new exit (range 11) 35498 | -4/Garrison | Found embedded Infiltrators 35529 | -4/Garrison | Triggered checkpoint 35585 | -4/Garrison | Discovered new exit (range 53) 35585 | -4/Garrison | Discovered new exit (range 34) 35585 | -4/Garrison | Discovered new exit (range 34) 35613 | -4/Garrison | Triggered checkpoint 35681 | -4/Garrison | Triggered checkpoint 35755 | -4/Garrison | Expanded RIF knowledge: Threat Obfuscation 35974 | -4/Garrison | Entered Factory 35974 | -4/Factory | Accompanied by 2 allies 36111 | -4/Factory | Garrison activated, responded to threat 36145 | -4/Factory | Unchained authorized (CL-0N3) 36224 | -4/Factory | First assault squad dispatched 36689 | -4/Factory | System corruption reached 10% 36725 | -4/Factory | Spotted Immortal 36735 | -4/Factory | Core integrity fell below 50% 36746 | -4/Factory | Core integrity fell below 20% 36782 | -4/Factory | Lost 18 parts (3p4n7u4w) 36985 | -4/Factory | Identified exit to Garrison 36985 | -4/Factory | Entered Garrison 36995 | -4/Garrison | Garrison Relay disabled 37011 | -4/Garrison | Spotted B-86 Titan 37019 | -4/Garrison | Triggered checkpoint 37138 | -4/Garrison | Destroyed by H-77 Assassin with High-powered Shotgun Last Messages --------------- 37121_ Adv. Heat Sink melted. 37121_ Wave Gun melted. 37121_ Y-64 Sentinel destroyed. 37123_ Acquired Adv. Heat Sink. 37124_ Slug penetrates Wall. 37124_ Penetrated by Slug. 37124_ Slug penetrates Wall. 37124_ Penetrated by Slug. 37125_ Acquired 80 matter. 37128_ Slug penetrates Wall. 37132_ Penetrated by Slug. 37132_ Slug penetrates Wall. 37135_ DKWZRZ,%YK/9X|>XFEV5:TFO#6